[Event "Titled Tuesday Blitz June 1 2021"]
[White "Plotnikov, Pavel"]
[Black "Alavi, Sayed Javad"]
[WhiteFideId "4170342"]
[BlackFideId "12500607"]
[WhiteElo "2298"]
[BlackElo "2495"]
[Result "0-1"]
[Round "03"]
[TimeControl "180+1"]
[Date "2021.06.01"]
[WhiteClock "0:00:26"]
[BlackClock "0:00:12"]

1. e4 {[%clk 0:03:00]}  e5 {[%clk 0:02:59]} 2. Nf3 {[%clk 0:03:00]}  Nc6 {[%clk 0:02:58]} 3. Bc4 {[%clk 0:03:00]}  Be7 {[%clk 0:02:54]} 4. d3 {[%clk 0:02:57]}  Nf6 {[%clk 0:02:53]} 5. O-O {[%clk 0:02:56]}  O-O {[%clk 0:02:53]} 6. h3 {[%clk 0:02:54]}  d6 {[%clk 0:02:54]} 7. c3 {[%clk 0:02:54]}  Be6 {[%clk 0:02:51]} 8. Bb3 {[%clk 0:02:54]}  Bxb3 {[%clk 0:02:47]} 9. Qxb3 {[%clk 0:02:53]}  Rb8 {[%clk 0:02:47]} 10. Nbd2 {[%clk 0:02:53]}  Nd7 {[%clk 0:02:46]} 11. Re1 {[%clk 0:02:53]}  Nc5 {[%clk 0:02:45]} 12. Qc2 {[%clk 0:02:54]}  d5 {[%clk 0:02:37]} 13. b4 {[%clk 0:02:40]}  dxe4 {[%clk 0:02:36]} 14. dxe4 {[%clk 0:02:25]}  Qd3 {[%clk 0:02:10]} 15. Qxd3 {[%clk 0:02:16]}  Nxd3 {[%clk 0:02:11]} 16. Rd1 {[%clk 0:02:16]}  f6 {[%clk 0:01:57]} 17. Nc4 {[%clk 0:02:10]}  Nxc1 {[%clk 0:01:48]} 18. Raxc1 {[%clk 0:02:10]}  a6 {[%clk 0:01:45]} 19. Rd7 {[%clk 0:02:09]}  Rbc8 {[%clk 0:01:41]} 20. Rcd1 {[%clk 0:02:04]}  Rfd8 {[%clk 0:01:37]} 21. Ne3 {[%clk 0:02:04]}  Bd6 {[%clk 0:01:28]} 22. Rxd8+ {[%clk 0:02:01]}  Rxd8 {[%clk 0:01:28]} 23. Nf5 {[%clk 0:01:59]}  Kf8 {[%clk 0:01:28]} 24. Kf1 {[%clk 0:01:59]}  g6 {[%clk 0:01:27]} 25. Nxd6 {[%clk 0:01:57]}  Rxd6 {[%clk 0:01:27]} 26. Rxd6 {[%clk 0:01:51]}  cxd6 {[%clk 0:01:28]} 27. Ke2 {[%clk 0:01:52]}  Ke7 {[%clk 0:01:28]} 28. Kd3 {[%clk 0:01:52]}  Ke6 {[%clk 0:01:22]} 29. Nd2 {[%clk 0:01:51]}  f5 {[%clk 0:01:10]} 30. f3 {[%clk 0:01:51]}  b5 {[%clk 0:00:59]} 31. a3 {[%clk 0:01:48]}  d5 {[%clk 0:00:51]} 32. Nb3 {[%clk 0:01:43]}  Kd6 {[%clk 0:00:37]} 33. Nc5 {[%clk 0:01:41]}  Nb8 {[%clk 0:00:30]} 34. Nb7+ {[%clk 0:01:39]}  Kc7 {[%clk 0:00:28]} 35. Nc5 {[%clk 0:01:33]}  Kc6 {[%clk 0:00:28]} 36. Ne6 {[%clk 0:01:31]}  dxe4+ {[%clk 0:00:22]} 37. fxe4 {[%clk 0:01:31]}  Nd7 {[%clk 0:00:22]} 38. Nd8+ {[%clk 0:01:20]}  Kd6 {[%clk 0:00:18]} 39. Nf7+ {[%clk 0:01:18]}  Ke7 {[%clk 0:00:18]} 40. Ng5 {[%clk 0:01:18]}  h5 {[%clk 0:00:17]} 41. Nf3 {[%clk 0:01:17]}  Kd6 {[%clk 0:00:17]} 42. Nh4 {[%clk 0:01:15]}  fxe4+ {[%clk 0:00:16]} 43. Kxe4 {[%clk 0:01:14]}  Nf6+ {[%clk 0:00:17]} 44. Ke3 {[%clk 0:01:14]}  Nd5+ {[%clk 0:00:16]} 45. Kd3 {[%clk 0:01:13]}  Nf4+ {[%clk 0:00:15]} 46. Ke4 {[%clk 0:01:12]}  Ke6 {[%clk 0:00:12]} 47. Kf3 {[%clk 0:00:54]}  g5 {[%clk 0:00:11]} 48. g3 {[%clk 0:00:54]}  Nd5 {[%clk 0:00:09]} 49. Ng6 {[%clk 0:00:52]}  Nxc3 {[%clk 0:00:09]} 50. Nf8+ {[%clk 0:00:53]}  Ke7 {[%clk 0:00:08]} 51. Nh7 {[%clk 0:00:52]}  Nb1 {[%clk 0:00:07]} 52. Nxg5 {[%clk 0:00:52]}  Nxa3 {[%clk 0:00:07]} 53. Ke4 {[%clk 0:00:52]}  Nc2 {[%clk 0:00:07]} 54. Kxe5 {[%clk 0:00:44]}  Nxb4 {[%clk 0:00:06]} 55. Kd4 {[%clk 0:00:45]}  Nc6+ {[%clk 0:00:06]} 56. Kc5 {[%clk 0:00:45]}  Nb8 {[%clk 0:00:06]} 57. Ne4 {[%clk 0:00:44]}  Nd7+ {[%clk 0:00:06]} 58. Kb4 {[%clk 0:00:43]}  Ke6 {[%clk 0:00:05]} 59. Ka5 {[%clk 0:00:40]}  Nb8 {[%clk 0:00:05]} 60. Nc5+ {[%clk 0:00:26]}  Ke5 {[%clk 0:00:06]} 61. Nd7+ {[%clk 0:00:25]}  Nxd7 {[%clk 0:00:04]} 62. Kxa6 {[%clk 0:00:25]}  b4 {[%clk 0:00:04]} 63. Kb5 {[%clk 0:00:25]}  b3 {[%clk 0:00:05]} 64. Kc4 {[%clk 0:00:25]}  b2 {[%clk 0:00:05]} 65. g4 {[%clk 0:00:26]}  b1=Q {[%clk 0:00:06]} 66. gxh5 {[%clk 0:00:26]}  Qc1+ {[%clk 0:00:07]} 67. Kd3 {[%clk 0:00:26]}  Qf4 {[%clk 0:00:07]} 68. h6 {[%clk 0:00:26]}  Qe4+ {[%clk 0:00:08]} 69. Kd2 {[%clk 0:00:26]}  Nf6 {[%clk 0:00:09]} 70. h7 {[%clk 0:00:26]}  Qd4+ {[%clk 0:00:10]} 71. Ke2 {[%clk 0:00:26]}  Nxh7 {[%clk 0:00:11]} 72. Kf3 {[%clk 0:00:25]}  Qe4+ {[%clk 0:00:12]} 73. Kg3 {[%clk 0:00:24]}  Qf4+ {[%clk 0:00:13]} 74. Kg2 {[%clk 0:00:25]}  Nf6 {[%clk 0:00:13]} 75. h4 {[%clk 0:00:26]}  Ne4 {[%clk 0:00:12]} 76. h5 {[%clk 0:00:26]}  Qg3+ {[%clk 0:00:12]} 77. Kf1 {[%clk 0:00:26]}  Qf2# {[%clk 0:00:12]} 0-1


[Site "https://www.chess.com"]

[Event "Titled Tuesday Blitz June 1 2021"]
[White "Rostovtsev, Dmitry"]
[Black "Cunjalo, Faris"]
[WhiteFideId "34278320"]
[BlackFideId "14410710"]
[WhiteElo "2143"]
[BlackElo "2234"]
[Result "1/2-1/2"]
[Round "03"]
[TimeControl "180+1"]
[Date "2021.06.01"]
[WhiteClock "0:00:09"]
[BlackClock "0:00:07"]

1. e4 {[%clk 0:03:00]}  c5 {[%clk 0:02:59]} 2. Nf3 {[%clk 0:02:56]}  Nc6 {[%clk 0:02:59]} 3. d4 {[%clk 0:02:57]}  cxd4 {[%clk 0:03:00]} 4. Nxd4 {[%clk 0:02:58]}  Nf6 {[%clk 0:03:00]} 5. Nc3 {[%clk 0:02:58]}  d6 {[%clk 0:02:58]} 6. Bg5 {[%clk 0:02:58]}  e6 {[%clk 0:02:58]} 7. Qd2 {[%clk 0:02:58]}  a6 {[%clk 0:02:58]} 8. O-O-O {[%clk 0:02:57]}  Bd7 {[%clk 0:02:57]} 9. f3 {[%clk 0:02:57]}  Nxd4 {[%clk 0:02:54]} 10. Qxd4 {[%clk 0:02:58]}  b5 {[%clk 0:02:47]} 11. g4 {[%clk 0:02:55]}  Be7 {[%clk 0:02:43]} 12. Be3 {[%clk 0:02:54]}  Rc8 {[%clk 0:02:19]} 13. h4 {[%clk 0:02:29]}  e5 {[%clk 0:02:09]} 14. Qd2 {[%clk 0:02:24]}  Be6 {[%clk 0:02:04]} 15. g5 {[%clk 0:02:16]}  Nd7 {[%clk 0:01:51]} 16. Nd5 {[%clk 0:02:11]}  Bxd5 {[%clk 0:01:51]} 17. Qxd5 {[%clk 0:02:11]}  Qc7 {[%clk 0:01:49]} 18. Rh2 {[%clk 0:02:00]}  Nb6 {[%clk 0:01:44]} 19. Bxb6 {[%clk 0:01:50]}  Qxb6 {[%clk 0:01:45]} 20. Bh3 {[%clk 0:01:44]}  Rc6 {[%clk 0:01:29]} 21. Kb1 {[%clk 0:01:38]}  Qc5 {[%clk 0:01:28]} 22. Rhd2 {[%clk 0:01:30]}  Qxd5 {[%clk 0:01:26]} 23. Rxd5 {[%clk 0:01:29]}  h6 {[%clk 0:01:13]} 24. Bg4 {[%clk 0:01:07]}  hxg5 {[%clk 0:01:08]} 25. hxg5 {[%clk 0:01:08]}  Rh2 {[%clk 0:00:57]} 26. c3 {[%clk 0:00:49]}  Kf8 {[%clk 0:00:54]} 27. g6 {[%clk 0:00:43]}  fxg6 {[%clk 0:00:54]} 28. R5d2 {[%clk 0:00:41]}  Rh4 {[%clk 0:00:51]} 29. Kc2 {[%clk 0:00:38]}  Kf7 {[%clk 0:00:50]} 30. Kb3 {[%clk 0:00:36]}  Kf6 {[%clk 0:00:45]} 31. Rg1 {[%clk 0:00:34]}  Kf7 {[%clk 0:00:36]} 32. Rdg2 {[%clk 0:00:32]}  g5 {[%clk 0:00:35]} 33. Rd1 {[%clk 0:00:31]}  Rh6 {[%clk 0:00:31]} 34. Rgd2 {[%clk 0:00:30]}  Bd8 {[%clk 0:00:31]} 35. Rd5 {[%clk 0:00:29]}  Ke7 {[%clk 0:00:29]} 36. R5d2 {[%clk 0:00:24]}  Bb6 {[%clk 0:00:28]} 37. Rd3 {[%clk 0:00:24]}  Bc5 {[%clk 0:00:27]} 38. R3d2 {[%clk 0:00:24]}  a5 {[%clk 0:00:27]} 39. a3 {[%clk 0:00:21]}  Rb6 {[%clk 0:00:26]} 40. Rg2 {[%clk 0:00:21]}  Rb8 {[%clk 0:00:22]} 41. Bf5 {[%clk 0:00:20]}  Be3 {[%clk 0:00:21]} 42. Rd3 {[%clk 0:00:19]}  Bf4 {[%clk 0:00:21]} 43. Rd5 {[%clk 0:00:19]}  g6 {[%clk 0:00:20]} 44. Bg4 {[%clk 0:00:19]}  Rh1 {[%clk 0:00:20]} 45. Ka2 {[%clk 0:00:16]}  b4 {[%clk 0:00:19]} 46. cxb4 {[%clk 0:00:12]}  axb4 {[%clk 0:00:20]} 47. axb4 {[%clk 0:00:13]}  Rxb4 {[%clk 0:00:20]} 48. Ra5 {[%clk 0:00:14]}  Rd1 {[%clk 0:00:14]} 49. Ra7+ {[%clk 0:00:12]}  Kf6 {[%clk 0:00:14]} 50. Rc2 {[%clk 0:00:12]}  Rdd4 {[%clk 0:00:09]} 51. Rcc7 {[%clk 0:00:05]}  Ra4+ {[%clk 0:00:09]} 52. Rxa4 {[%clk 0:00:05]}  Rxa4+ {[%clk 0:00:09]} 53. Kb3 {[%clk 0:00:06]}  Ra5 {[%clk 0:00:08]} 54. Kc2 {[%clk 0:00:04]}  d5 {[%clk 0:00:07]} 55. b4 {[%clk 0:00:05]}  Rb5 {[%clk 0:00:06]} 56. exd5 {[%clk 0:00:04]}  Rxd5 {[%clk 0:00:07]} 57. Rc6+ {[%clk 0:00:04]}  Ke7 {[%clk 0:00:05]} 58. Rxg6 {[%clk 0:00:03]}  Rd4 {[%clk 0:00:05]} 59. b5 {[%clk 0:00:03]}  Rb4 {[%clk 0:00:04]} 60. b6 {[%clk 0:00:04]}  Be3 {[%clk 0:00:04]} 61. b7 {[%clk 0:00:04]}  Kf7 {[%clk 0:00:02]} 62. Rd6 {[%clk 0:00:03]}  Rxb7 {[%clk 0:00:02]} 63. Rd7+ {[%clk 0:00:03]}  Rxd7 {[%clk 0:00:02]} 64. Bxd7 {[%clk 0:00:04]}  Ke7 {[%clk 0:00:03]} 65. Bg4 {[%clk 0:00:05]}  Kd6 {[%clk 0:00:03]} 66. Kd3 {[%clk 0:00:06]}  Bf4 {[%clk 0:00:04]} 67. Ke4 {[%clk 0:00:06]}  Kc5 {[%clk 0:00:05]} 68. Bf5 {[%clk 0:00:07]}  Kc4 {[%clk 0:00:06]} 69. Bg4 {[%clk 0:00:08]}  Kc3 {[%clk 0:00:07]} 70. Bf5 {[%clk 0:00:08]}  Kd2 {[%clk 0:00:07]} 71. Bg4 {[%clk 0:00:09]} 1/2-1/2


[Site "https://www.chess.com"]

[Event "Titled Tuesday Blitz June 1 2021"]
[White "Saravana, Krishnan P."]
[Black "Tanenbaum, Zachary"]
[WhiteFideId "5018382"]
[BlackFideId "2060850"]
[WhiteElo "2245"]
[BlackElo "2165"]
[Result "0-1"]
[Round "03"]
[TimeControl "180+1"]
[Date "2021.06.01"]
[WhiteClock "0:00:46"]
[BlackClock "0:00:16"]

1. e4 {[%clk 0:03:00]}  e5 {[%clk 0:03:00]} 2. Nf3 {[%clk 0:02:55]}  Nc6 {[%clk 0:03:00]} 3. Bb5 {[%clk 0:02:55]}  a6 {[%clk 0:03:01]} 4. Ba4 {[%clk 0:02:55]}  d6 {[%clk 0:03:02]} 5. O-O {[%clk 0:02:54]}  Nf6 {[%clk 0:03:02]} 6. Re1 {[%clk 0:02:55]}  Be7 {[%clk 0:03:03]} 7. c3 {[%clk 0:02:55]}  O-O {[%clk 0:03:03]} 8. h3 {[%clk 0:02:55]}  b5 {[%clk 0:03:03]} 9. Bc2 {[%clk 0:02:55]}  Bb7 {[%clk 0:03:03]} 10. a3 {[%clk 0:02:51]}  Re8 {[%clk 0:03:03]} 11. d4 {[%clk 0:02:51]}  Bf8 {[%clk 0:03:03]} 12. Bg5 {[%clk 0:02:50]}  h6 {[%clk 0:02:42]} 13. Bxf6 {[%clk 0:02:49]}  Qxf6 {[%clk 0:02:41]} 14. dxe5 {[%clk 0:02:40]}  dxe5 {[%clk 0:02:35]} 15. Nbd2 {[%clk 0:02:38]}  Rad8 {[%clk 0:02:30]} 16. Qe2 {[%clk 0:02:38]}  Bc8 {[%clk 0:02:23]} 17. Nf1 {[%clk 0:02:34]}  Ne7 {[%clk 0:02:23]} 18. a4 {[%clk 0:02:25]}  Ng6 {[%clk 0:02:19]} 19. N3h2 {[%clk 0:02:16]}  Nf4 {[%clk 0:02:19]} 20. Qf3 {[%clk 0:02:16]}  Bc5 {[%clk 0:02:14]} 21. Ng4 {[%clk 0:02:14]}  Qg5 {[%clk 0:01:57]} 22. b4 {[%clk 0:02:12]}  Bb6 {[%clk 0:01:45]} 23. Kh1 {[%clk 0:02:03]}  Rd6 {[%clk 0:01:35]} 24. axb5 {[%clk 0:02:01]}  axb5 {[%clk 0:01:31]} 25. Rad1 {[%clk 0:01:57]}  Rg6 {[%clk 0:01:30]} 26. Ng3 {[%clk 0:01:47]}  Bxg4 {[%clk 0:01:22]} 27. hxg4 {[%clk 0:01:36]}  Qh4+ {[%clk 0:01:22]} 28. Kg1 {[%clk 0:01:33]}  Rxg4 {[%clk 0:01:23]} 29. Nf5 {[%clk 0:01:05]}  Bxf2+ {[%clk 0:00:26]} 30. Kf1 {[%clk 0:00:58]}  Qh2 {[%clk 0:00:24]} 31. Nxh6+ {[%clk 0:00:47]}  Kf8 {[%clk 0:00:16]} 32. Nxg4 {[%clk 0:00:46]}  Qg1# {[%clk 0:00:16]} 0-1


[Site "https://www.chess.com"]

[Event "Titled Tuesday Blitz June 1 2021"]
[White "Shahaliyev, Ismayil"]
[Black "Kate1606"]
[WhiteFideId "13406388"]
[WhiteElo "2105"]
[BlackElo "2086"]
[Result "1-0"]
[Round "03"]
[TimeControl "180+1"]
[Date "2021.06.01"]
[WhiteClock "0:01:28"]
[BlackClock "0:00:20"]

1. Nf3 {[%clk 0:03:00]}  c5 {[%clk 0:02:54]} 2. c3 {[%clk 0:02:56]}  Nc6 {[%clk 0:02:46]} 3. d4 {[%clk 0:02:57]}  cxd4 {[%clk 0:02:44]} 4. cxd4 {[%clk 0:02:58]}  d5 {[%clk 0:02:43]} 5. Nc3 {[%clk 0:02:58]}  g6 {[%clk 0:02:40]} 6. Bg5 {[%clk 0:02:50]}  Bg7 {[%clk 0:02:39]} 7. e3 {[%clk 0:02:50]}  h6 {[%clk 0:02:37]} 8. Bh4 {[%clk 0:02:50]}  Nf6 {[%clk 0:02:38]} 9. Bd3 {[%clk 0:02:48]}  O-O {[%clk 0:02:37]} 10. h3 {[%clk 0:02:49]}  a6 {[%clk 0:02:21]} 11. O-O {[%clk 0:02:46]}  b5 {[%clk 0:02:06]} 12. Nd2 {[%clk 0:02:26]}  Bb7 {[%clk 0:02:00]} 13. Nb3 {[%clk 0:02:26]}  b4 {[%clk 0:01:53]} 14. Na4 {[%clk 0:02:26]}  Rc8 {[%clk 0:01:51]} 15. Nac5 {[%clk 0:02:22]}  Qb6 {[%clk 0:01:45]} 16. Nxb7 {[%clk 0:02:21]}  Qxb7 {[%clk 0:01:44]} 17. Nc5 {[%clk 0:02:22]}  Qa7 {[%clk 0:01:40]} 18. Bxa6 {[%clk 0:02:21]}  Rb8 {[%clk 0:01:35]} 19. Be2 {[%clk 0:02:19]}  g5 {[%clk 0:01:32]} 20. Bg3 {[%clk 0:02:19]}  Rbc8 {[%clk 0:01:29]} 21. a3 {[%clk 0:02:12]}  bxa3 {[%clk 0:01:25]} 22. Rxa3 {[%clk 0:02:13]}  Qb6 {[%clk 0:01:22]} 23. Rb3 {[%clk 0:02:14]}  Qa5 {[%clk 0:01:15]} 24. Rb5 {[%clk 0:02:12]}  Qa2 {[%clk 0:01:05]} 25. Bd3 {[%clk 0:02:10]}  e6 {[%clk 0:00:47]} 26. Bb1 {[%clk 0:02:00]}  Qa7 {[%clk 0:00:46]} 27. Bd3 {[%clk 0:01:59]}  Rfd8 {[%clk 0:00:41]} 28. h4 {[%clk 0:01:56]}  g4 {[%clk 0:00:38]} 29. Rb7 {[%clk 0:01:49]}  Qa5 {[%clk 0:00:37]} 30. Qb1 {[%clk 0:01:45]}  h5 {[%clk 0:00:34]} 31. b4 {[%clk 0:01:45]}  Qa3 {[%clk 0:00:32]} 32. Rb6 {[%clk 0:01:40]}  Ne7 {[%clk 0:00:27]} 33. Ra6 {[%clk 0:01:35]}  Qc3 {[%clk 0:00:24]} 34. Rc1 {[%clk 0:01:35]}  Qd2 {[%clk 0:00:20]} 35. Ra2 {[%clk 0:01:28]} 1-0


[Site "https://www.chess.com"]

[Event "Titled Tuesday Blitz June 1 2021"]
[White "Smirnov, Pavel"]
[Black "Mikhalsky, Vladimir"]
[WhiteFideId "4123425"]
[BlackFideId "14144352"]
[WhiteElo "2584"]
[BlackElo "2280"]
[Result "1/2-1/2"]
[Round "03"]
[TimeControl "180+1"]
[Date "2021.06.01"]
[WhiteClock "0:00:32"]
[BlackClock "0:00:41"]

1. d4 {[%clk 0:03:00]}  g6 {[%clk 0:02:55]} 2. e4 {[%clk 0:03:00]}  Bg7 {[%clk 0:02:54]} 3. Nc3 {[%clk 0:03:01]}  d6 {[%clk 0:02:53]} 4. f4 {[%clk 0:03:01]}  a6 {[%clk 0:02:53]} 5. Nf3 {[%clk 0:03:02]}  Nd7 {[%clk 0:02:53]} 6. Bc4 {[%clk 0:03:00]}  e6 {[%clk 0:02:51]} 7. f5 {[%clk 0:02:55]}  b5 {[%clk 0:02:28]} 8. Bb3 {[%clk 0:02:52]}  Nb6 {[%clk 0:02:25]} 9. O-O {[%clk 0:02:41]}  c5 {[%clk 0:02:14]} 10. dxc5 {[%clk 0:02:37]}  dxc5 {[%clk 0:02:14]} 11. Qxd8+ {[%clk 0:02:37]}  Kxd8 {[%clk 0:02:14]} 12. Ng5 {[%clk 0:02:34]}  c4 {[%clk 0:02:08]} 13. Nxf7+ {[%clk 0:02:31]}  Ke7 {[%clk 0:02:08]} 14. Nxh8 {[%clk 0:02:31]}  Bxh8 {[%clk 0:02:03]} 15. Be3 {[%clk 0:02:30]}  Nd7 {[%clk 0:01:58]} 16. fxe6 {[%clk 0:02:29]}  Kxe6 {[%clk 0:01:52]} 17. Nd5 {[%clk 0:02:29]}  Be5 {[%clk 0:01:48]} 18. Bf4 {[%clk 0:02:10]}  cxb3 {[%clk 0:01:44]} 19. Bxe5 {[%clk 0:02:10]}  Kxe5 {[%clk 0:01:42]} 20. axb3 {[%clk 0:02:08]}  Ngf6 {[%clk 0:01:38]} 21. Rad1 {[%clk 0:01:57]}  Bb7 {[%clk 0:01:34]} 22. c4 {[%clk 0:01:54]}  bxc4 {[%clk 0:01:30]} 23. bxc4 {[%clk 0:01:54]}  Rb8 {[%clk 0:01:17]} 24. b4 {[%clk 0:01:22]}  Bxd5 {[%clk 0:01:14]} 25. exd5 {[%clk 0:01:23]}  Rxb4 {[%clk 0:01:06]} 26. Rde1+ {[%clk 0:01:13]}  Kd4 {[%clk 0:01:06]} 27. Rf4+ {[%clk 0:01:07]}  Kc5 {[%clk 0:01:04]} 28. Re6 {[%clk 0:01:06]}  Rb6 {[%clk 0:01:00]} 29. g4 {[%clk 0:00:52]}  g5 {[%clk 0:00:59]} 30. Rf5 {[%clk 0:00:51]}  h6 {[%clk 0:00:58]} 31. d6+ {[%clk 0:00:43]}  Kxc4 {[%clk 0:00:54]} 32. Rfxf6 {[%clk 0:00:44]}  Nxf6 {[%clk 0:00:54]} 33. Rxf6 {[%clk 0:00:45]}  Rb1+ {[%clk 0:00:44]} 34. Kf2 {[%clk 0:00:42]}  Rd1 {[%clk 0:00:43]} 35. d7 {[%clk 0:00:35]}  Rxd7 {[%clk 0:00:42]} 36. Rxa6 {[%clk 0:00:36]}  Rd2+ {[%clk 0:00:41]} 37. Kg1 {[%clk 0:00:32]}  Rd1+ {[%clk 0:00:40]} 38. Kg2 {[%clk 0:00:31]}  Rd2+ {[%clk 0:00:40]} 39. Kg3 {[%clk 0:00:31]}  Rd3+ {[%clk 0:00:41]} 40. Kg2 {[%clk 0:00:31]}  Rd2+ {[%clk 0:00:41]} 41. Kg3 {[%clk 0:00:32]}  Rd3+ {[%clk 0:00:41]} 1/2-1/2


[Site "https://www.chess.com"]

[Event "Titled Tuesday Blitz June 1 2021"]
[White "Sonis, Francesco"]
[Black "Nagy, Gabor"]
[WhiteFideId "895733"]
[BlackFideId "737119"]
[WhiteElo "2625"]
[BlackElo "2799"]
[Result "1-0"]
[Round "03"]
[TimeControl "180+1"]
[Date "2021.06.01"]
[WhiteClock "0:00:16"]
[BlackClock "0:00:06"]

1. d4 {[%clk 0:03:00]}  Nf6 {[%clk 0:02:59]} 2. c4 {[%clk 0:03:00]}  e6 {[%clk 0:02:59]} 3. Nf3 {[%clk 0:02:59]}  d5 {[%clk 0:02:58]} 4. g3 {[%clk 0:02:59]}  c6 {[%clk 0:02:54]} 5. Bg2 {[%clk 0:02:57]}  Nbd7 {[%clk 0:02:54]} 6. Qd3 {[%clk 0:02:55]}  b6 {[%clk 0:02:53]} 7. O-O {[%clk 0:02:53]}  Ba6 {[%clk 0:02:52]} 8. Nbd2 {[%clk 0:02:40]}  Rc8 {[%clk 0:02:48]} 9. b3 {[%clk 0:02:39]}  Be7 {[%clk 0:02:40]} 10. e4 {[%clk 0:02:36]}  O-O {[%clk 0:02:34]} 11. Bb2 {[%clk 0:02:34]}  c5 {[%clk 0:02:14]} 12. e5 {[%clk 0:02:16]}  Ne8 {[%clk 0:02:07]} 13. Rac1 {[%clk 0:02:10]}  Nc7 {[%clk 0:02:06]} 14. Rfd1 {[%clk 0:02:08]}  Qe8 {[%clk 0:01:57]} 15. Qe3 {[%clk 0:01:58]}  f5 {[%clk 0:01:50]} 16. exf6 {[%clk 0:01:55]}  Bxf6 {[%clk 0:01:50]} 17. cxd5 {[%clk 0:01:38]}  Nxd5 {[%clk 0:01:48]} 18. Qe1 {[%clk 0:01:36]}  Nb4 {[%clk 0:01:46]} 19. Nc4 {[%clk 0:01:31]}  Qe7 {[%clk 0:01:26]} 20. Nd6 {[%clk 0:01:32]}  Qxd6 {[%clk 0:01:25]} 21. dxc5 {[%clk 0:01:30]}  Qe7 {[%clk 0:00:57]} 22. Bxf6 {[%clk 0:01:28]}  Rxf6 {[%clk 0:00:49]} 23. Qxb4 {[%clk 0:01:28]}  Nxc5 {[%clk 0:00:50]} 24. Ne5 {[%clk 0:01:15]}  Rcf8 {[%clk 0:00:44]} 25. f4 {[%clk 0:01:10]}  Qe8 {[%clk 0:00:38]} 26. Qd4 {[%clk 0:01:02]}  Bb5 {[%clk 0:00:20]} 27. b4 {[%clk 0:00:52]}  Na6 {[%clk 0:00:20]} 28. h4 {[%clk 0:00:47]}  h6 {[%clk 0:00:20]} 29. Bc6 {[%clk 0:00:42]}  Bxc6 {[%clk 0:00:19]} 30. Rxc6 {[%clk 0:00:42]}  Rf5 {[%clk 0:00:18]} 31. Qc4 {[%clk 0:00:38]}  Qh5 {[%clk 0:00:13]} 32. Qxe6+ {[%clk 0:00:32]}  Kh7 {[%clk 0:00:14]} 33. g4 {[%clk 0:00:26]}  Qxh4 {[%clk 0:00:10]} 34. Qg6+ {[%clk 0:00:25]}  Kh8 {[%clk 0:00:11]} 35. gxf5 {[%clk 0:00:25]}  Qxf4 {[%clk 0:00:10]} 36. Nf7+ {[%clk 0:00:25]}  Kg8 {[%clk 0:00:10]} 37. Nxh6+ {[%clk 0:00:24]}  Kh8 {[%clk 0:00:11]} 38. Re6 {[%clk 0:00:16]}  Nc7 {[%clk 0:00:09]} 39. Re2 {[%clk 0:00:14]}  gxh6 {[%clk 0:00:08]} 40. Rg2 {[%clk 0:00:13]}  Qe3+ {[%clk 0:00:03]} 41. Kh2 {[%clk 0:00:13]}  Qf4+ {[%clk 0:00:04]} 42. Qg3 {[%clk 0:00:14]}  Qxg3+ {[%clk 0:00:04]} 43. Rxg3 {[%clk 0:00:15]}  Rxf5 {[%clk 0:00:05]} 44. Rd8+ {[%clk 0:00:15]}  Kh7 {[%clk 0:00:05]} 45. Rd7+ {[%clk 0:00:15]}  Kh8 {[%clk 0:00:06]} 46. Rxc7 {[%clk 0:00:16]}  Rh5+ {[%clk 0:00:06]} 47. Rh3 {[%clk 0:00:16]}  Rd5 {[%clk 0:00:06]} 48. Rxh6+ {[%clk 0:00:16]} 1-0


[Site "https://www.chess.com"]

[Event "Titled Tuesday Blitz June 1 2021"]
[White "Stark, Lars"]
[Black "Nesterov, Arseniy"]
[WhiteFideId "4676386"]
[BlackFideId "24198455"]
[WhiteElo "2632"]
[BlackElo "2823"]
[Result "0-1"]
[Round "03"]
[TimeControl "180+1"]
[Date "2021.06.01"]
[WhiteClock "0:00:09"]
[BlackClock "0:00:10"]

1. c4 {[%clk 0:03:00]}  e5 {[%clk 0:03:00]} 2. g3 {[%clk 0:03:01]}  Nc6 {[%clk 0:02:58]} 3. Bg2 {[%clk 0:03:01]}  Bc5 {[%clk 0:02:58]} 4. Nc3 {[%clk 0:03:01]}  d6 {[%clk 0:02:58]} 5. a3 {[%clk 0:03:01]}  a6 {[%clk 0:02:54]} 6. e3 {[%clk 0:03:02]}  Nge7 {[%clk 0:02:54]} 7. Nge2 {[%clk 0:03:02]}  O-O {[%clk 0:02:54]} 8. O-O {[%clk 0:03:02]}  Bg4 {[%clk 0:02:52]} 9. h3 {[%clk 0:03:02]}  Bh5 {[%clk 0:02:52]} 10. d3 {[%clk 0:02:59]}  f5 {[%clk 0:02:50]} 11. Qc2 {[%clk 0:02:52]}  Ba7 {[%clk 0:02:49]} 12. b4 {[%clk 0:02:50]}  h6 {[%clk 0:02:29]} 13. Kh2 {[%clk 0:02:50]}  Ng6 {[%clk 0:02:16]} 14. b5 {[%clk 0:02:42]}  axb5 {[%clk 0:02:12]} 15. cxb5 {[%clk 0:02:43]}  Na5 {[%clk 0:02:12]} 16. a4 {[%clk 0:02:02]}  f4 {[%clk 0:02:03]} 17. exf4 {[%clk 0:01:59]}  exf4 {[%clk 0:02:03]} 18. Nxf4 {[%clk 0:01:58]}  Nxf4 {[%clk 0:02:03]} 19. Bxf4 {[%clk 0:01:58]}  Rxf4 {[%clk 0:02:01]} 20. gxf4 {[%clk 0:01:59]}  Qh4 {[%clk 0:02:01]} 21. Nd5 {[%clk 0:01:56]}  c6 {[%clk 0:01:57]} 22. bxc6 {[%clk 0:01:55]}  bxc6 {[%clk 0:01:58]} 23. Rae1 {[%clk 0:01:01]}  Kh8 {[%clk 0:01:11]} 24. Ne7 {[%clk 0:00:58]}  Qxf4+ {[%clk 0:01:09]} 25. Kh1 {[%clk 0:00:54]}  d5 {[%clk 0:01:02]} 26. d4 {[%clk 0:00:47]}  Bb8 {[%clk 0:00:52]} 27. Re5 {[%clk 0:00:44]}  Bxe5 {[%clk 0:00:52]} 28. dxe5 {[%clk 0:00:45]}  Qxe5 {[%clk 0:00:50]} 29. Ng6+ {[%clk 0:00:43]}  Bxg6 {[%clk 0:00:50]} 30. Qxg6 {[%clk 0:00:44]}  Rf8 {[%clk 0:00:34]} 31. Kg1 {[%clk 0:00:27]}  Rf6 {[%clk 0:00:28]} 32. Qg4 {[%clk 0:00:27]}  Nc4 {[%clk 0:00:21]} 33. Qd1 {[%clk 0:00:23]}  Qf4 {[%clk 0:00:18]} 34. Qc2 {[%clk 0:00:22]}  Ne5 {[%clk 0:00:16]} 35. Re1 {[%clk 0:00:22]}  d4 {[%clk 0:00:10]} 36. Qe4 {[%clk 0:00:19]}  Qxf2+ {[%clk 0:00:10]} 37. Kh1 {[%clk 0:00:19]}  Ng6 {[%clk 0:00:05]} 38. Rf1 {[%clk 0:00:18]}  Qh4 {[%clk 0:00:03]} 39. Qe8+ {[%clk 0:00:18]}  Kh7 {[%clk 0:00:03]} 40. Rxf6 {[%clk 0:00:17]}  Qxf6 {[%clk 0:00:04]} 41. Be4 {[%clk 0:00:17]}  c5 {[%clk 0:00:04]} 42. Bd3 {[%clk 0:00:14]}  Qf3+ {[%clk 0:00:04]} 43. Kg1 {[%clk 0:00:14]}  Qxd3 {[%clk 0:00:05]} 44. a5 {[%clk 0:00:14]}  Qd1+ {[%clk 0:00:04]} 45. Kf2 {[%clk 0:00:14]}  Qc2+ {[%clk 0:00:05]} 46. Kf3 {[%clk 0:00:14]}  Qc3+ {[%clk 0:00:05]} 47. Kg4 {[%clk 0:00:14]}  Qxa5 {[%clk 0:00:05]} 48. Qe4 {[%clk 0:00:13]}  Qb6 {[%clk 0:00:05]} 49. h4 {[%clk 0:00:13]}  Qf6 {[%clk 0:00:04]} 50. h5 {[%clk 0:00:13]}  Qh4+ {[%clk 0:00:03]} 51. Kf5 {[%clk 0:00:13]}  Qxe4+ {[%clk 0:00:04]} 52. Kxe4 {[%clk 0:00:14]}  Nh4 {[%clk 0:00:05]} 53. Kd3 {[%clk 0:00:02]}  g6 {[%clk 0:00:05]} 54. hxg6+ {[%clk 0:00:02]}  Kxg6 {[%clk 0:00:06]} 55. Ke4 {[%clk 0:00:03]}  Kg5 {[%clk 0:00:07]} 56. Ke5 {[%clk 0:00:03]}  Ng6+ {[%clk 0:00:07]} 57. Ke4 {[%clk 0:00:03]}  h5 {[%clk 0:00:08]} 58. Kf3 {[%clk 0:00:04]}  h4 {[%clk 0:00:09]} 59. Kg2 {[%clk 0:00:04]}  d3 {[%clk 0:00:09]} 60. Kh3 {[%clk 0:00:05]}  d2 {[%clk 0:00:09]} 61. Kg2 {[%clk 0:00:06]}  Nf4+ {[%clk 0:00:10]} 62. Kh2 {[%clk 0:00:07]}  Ne6 {[%clk 0:00:09]} 63. Kg1 {[%clk 0:00:08]}  d1=Q+ {[%clk 0:00:09]} 64. Kf2 {[%clk 0:00:09]}  Qd2+ {[%clk 0:00:10]} 65. Kf3 {[%clk 0:00:09]}  Qd3+ {[%clk 0:00:09]} 66. Kf2 {[%clk 0:00:09]}  Kg4 {[%clk 0:00:10]} 67. Kg2 {[%clk 0:00:09]}  Qe2+ {[%clk 0:00:10]} 68. Kh1 {[%clk 0:00:09]}  Kg3 {[%clk 0:00:10]} 0-1


[Site "https://www.chess.com"]